bitfinex-derivatives/quotes_SOLF0:USTF0_20240927
["timestamp","ask_amount","ask_price","bid_price","bid_amount"]
[1727444221742,26.99,156.35,156.27,1.1753526]
[1727444221946,26.99,156.35,156.24,3.9115]
[1727444222141,26.99,156.35,156.25,1.17541584]
[1727444222352,26.99,156.35,156.24,3.9115]
[1727444222552,26.99,156.35,156.26,1.17544177]
[1727444222746,26.99,156.35,156.32,3.1975]
[1727444224349,26.99,156.35,156.34,3.1973]
[1727444224551,26.99,156.37,156.34,3.1973]
[1727444225453,26.99,156.37,156.33,3.1975]
[1727444225652,26.99,156.35,156.24,3.9115]
[1727444225851,26.99,156.33,156.25,1.17543608]
[1727444226153,26.99,156.33,156.26,1.17543608]
[1727444226347,26.99,156.33,156.26,1.17546509]
[1727444226552,26.99,156.33,156.31,3.1978]
[1727444227352,26.99,156.33,156.3,3.1981]
[1727444227550,26.99,156.33,156.24,3.9115]
[1727444227751,26.99,156.3,156.27,3.1987]
[1727444227958,26.99,156.3,156.25,1.1755754]
[1727444228457,26.99,156.3,156.29,3.1983]
[1727444228960,26.99,156.32,156.3,3.1979]
[1727444229664,26.99,156.32,156.31,3.1979]
[1727444230359,26.99,156.35,156.25,1.1755754]
[1727444230758,26.99,156.35,156.26,1.17546923]
[1727444231255,26.99,156.37,156.26,1.17546923]
[1727444231461,26.99,156.37,156.27,1.17546923]
[1727444231662,75.94,156.4,156.28,28.16546923]
[1727444231853,26.99,156.43,156.31,26.99]
[1727444232158,26.99,156.45,156.33,26.99]
[1727444232555,106.20896916,156.48,156.33,26.99]
[1727444232756,109.40356916,156.48,156.34,1.17492761]
[1727444232954,106.20896916,156.48,156.35,1.17492761]
[1727444233151,26.99,156.45,156.34,1.17492761]
[1727444233355,26.99,156.45,156.42,3.1955]
[1727444233658,26.99,156.45,156.33,26.99]
[1727444233864,26.99,156.45,156.34,1.17489518]
[1727444234160,26.99,156.45,156.33,26.99]
[1727444234161,26.99,156.45,156.42,3.1955]
[1727444234758,26.99,156.45,156.41,3.1957]
[1727444236159,26.99,156.45,156.33,26.99]
[1727444236160,26.99,156.43,156.32,3.8639]
[1727444236362,26.99,156.4,156.32,3.8639]
[1727444236561,26.99,156.4,156.36,3.1967]
[1727444236761,26.99,156.4,156.32,2.5838]
[1727444236959,26.99,156.37,156.34,3.1972]
[1727444237158,26.99,156.37,156.12,2.75905718]
[1727444237159,26.99,156.35,156.18,3.20287929]
[1727444237367,26.99,156.32,156.22,2.6251]
[1727444237558,26.99,156.32,156.28,3.1985]
[1727444238061,26.99,156.32,156.23,1.3631]
[1727444238363,26.99,156.34,156.23,1.3631]
[1727444238568,26.99,156.34,156.24,1.17548763]
[1727444238867,26.99,156.34,156.23,1.3631]
[1727444239267,26.99,156.34,156.24,1.17554145]
[1727444240367,26.99,156.34,156.3,3.198]
[1727444240564,30.1874,156.34,156.3,3.198]
[1727444240867,26.99,156.32,156.23,1.3631]
[1727444241068,26.99,156.29,156.23,1.3631]
[1727444241666,26.99,156.29,156.27,3.1987]
[1727444241968,26.99,156.31,156.22,1.262]
[1727444242164,26.99,156.34,156.22,1.262]
[1727444242766,26.99,156.34,156.32,3.1977]
[1727444243265,26.99,156.34,156.22,1.262]
[1727444243460,26.99,156.31,156.23,1.17557523]
[1727444243664,26.99,156.31,156.19,1.2611]
[1727444243665,26.99,156.28,156.19,1.2611]
[1727444243972,26.99,156.28,156.2,2.43529348]
[1727444244158,26.99,156.31,156.21,1.17569348]
[1727444244359,26.99,156.29,156.2,1.2596]
[1727444244560,26.99,156.31,156.2,1.2596]
[1727444245358,30.188,156.31,156.27,3.1987]
[1727444245561,26.99,156.28,156.2,1.2596]
[1727444247069,26.99,156.28,156.25,3.199]
[1727444247464,26.99,156.28,156.23,3.1994]
[1727444247667,3.24198485,156.3,156.13,29.7034]
[1727444247668,26.99,156.26,156.13,29.7034]
[1727444248071,26.99,156.26,156.24,3.1992]
[1727444248373,26.99,156.26,156.13,29.7034]
[1727444249271,26.99,156.26,156.24,3.1992]
[1727444249666,26.99,156.26,156.13,29.7034]
[1727444250770,26.99,156.26,156.25,3.1991]
[1727444251168,26.99,156.26,156.13,29.7034]
[1727444251470,26.99,156.26,156.23,3.1994]
[1727444252879,26.99,156.26,156.13,29.7034]
[1727444253177,26.99,156.26,156.23,3.1995]
[1727444253377,26.99,156.26,156.13,2.7134]
[1727444253577,41.48786484,156.3,156.13,4.1088]
[1727444253578,26.99,156.21,156.13,4.1088]
[1727444253776,26.99,156.21,156.2,3.2]
[1727444254076,26.99,156.26,156.14,33.3928]
[1727444254279,26.99,156.26,156.25,3.1991]
[1727444254873,26.99,156.26,156.24,3.1993]
[1727444255379,26.99,156.26,156.23,3.1995]
[1727444256784,26.99,156.26,156.24,3.1993]
[1727444257273,26.99,156.26,156.22,3.1996]
[1727444257480,26.99,156.23,156.13,4.1088]
[1727444257778,26.99,156.19,156.18,3.2005]
[1727444259385,26.99,156.19,156.09,6.4047]
[1727444259581,26.99,156.19,156.1,2.7236]
[1727444260083,26.99,156.19,156.18,3.2006]
[1727444260682,26.99,156.19,156.1,2.7236]
[1727444262486,26.99,156.19,156.17,3.2006]
[1727444262679,26.99,156.19,156.1,2.7236]
[1727444263183,26.99,156.19,156.1,1.3709]
[1727444264186,26.99,156.22,156.1,1.3709]
[1727444265087,3.16688731,156.21,156.1,1.3709]
[1727444265275,26.99,156.2,156.1,1.3709]
[1727444265484,30.25968545,156.2,156.17,3.2007]
[1727444265788,26.99,156.18,156.1,1.3709]
[1727444266588,30.26609032,156.18,156.1,1.3709]
[1727444267286,26.99,156.18,156.14,3.2012]
[1727444267488,26.99,156.18,156.1,1.3709]
[1727444268191,26.99,156.18,156.05,3.27394063]
[1727444268389,30.17779273,156.18,156.04,87.81627209]
[1727444268591,30.17779273,156.18,156.05,1.17683624]
[1727444268781,26.99,156.15,156.05,1.17683624]
[1727444268986,30.19828889,156.15,156.04,60.82627209]
[1727444269587,33.39958889,156.15,156.11,3.2019]
[1727444269996,33.39958889,156.15,156.04,60.82627209]
[1727444269997,26.99,156.15,156.04,60.82627209]
[1727444270179,30.16882566,156.18,156.05,26.99]
[1727444270385,26.99,156.18,156.04,60.82627209]
[1727444270687,3.2009,156.17,156.05,1.17686409]
[1727444270884,30.14832951,156.18,156.05,1.17686409]
[1727444271490,3.2009,156.17,156.13,3.2015]
[1727444271681,30.14832951,156.18,156.13,3.2015]
[1727444271882,3.15832951,156.18,156.13,3.2015]
[1727444272191,26.99,156.15,156.13,3.2015]
[1727444272592,16.92,156.15,156.13,3.2015]
[1727444272990,16.92,156.15,156.05,16.92]
[1727444272991,16.92,156.15,156.14,3.2014]
[1727444273186,16.92,156.17,156.07,16.92]
[1727444274599,16.92,156.15,156.05,16.92]
[1727444275491,16.92,156.09,156.03,1.2637]
[1727444275997,16.92,156.09,156.06,3.2029]
[1727444276194,3.25290561,156.11,156.03,1.2637]
[1727444276392,3.25290561,156.11,155.86,9.82105453]
[1727444276393,16.92,156.05,155.96,3.21670882]
[1727444276590,16.92,156.05,155.97,1.3447]
[1727444276793,16.92,156.09,156.08,3.2026]
[1727444277095,16.92,156.09,156.01,2.7487]
[1727444277489,16.92,156.09,156.04,3.2033]
[1727444277690,20.1217,156.13,156.02,16.92]
[1727444277891,16.92,156.1,156.02,16.92]
[1727444278296,3.2022,156.1,156.01,1.3776]
[1727444278599,3.2817075,156.1,156.01,1.3776]
[1727444278794,27.06,156.11,156.01,1.3776]
[1727444279194,3.2201875,156.1,155.92,6.4117]
[1727444279499,27.06,156.11,155.98,27.06]
[1727444279694,30.27313833,156.13,156.08,3.2025]
[1727444279896,27.06,156.13,156.08,3.2025]
[1727444280096,27.06,156.13,156.02,2.5894]
[1727444280394,27.06,156.16,156.05,27.06]
[1727444280589,103.14,156.18,156.05,27.06]
[1727444280996,27.06,156.16,156.03,27.06]
[1727444281192,3.2014,156.14,156.03,27.06]
[1727444281395,3.18141708,156.26,156.08,27.06]
[1727444281588,27.06,156.21,156.09,2.5894]
[1727444282398,27.06,156.19,156.09,2.5894]
[1727444282801,3.1535752,156.18,156.12,3.2018]
[1727444283098,27.06,156.19,156.09,2.5894]
[1727444283395,27.06,156.24,156.1,27.06]
[1727444283600,27.06,156.24,156.1,28.4273]
[1727444283802,3.2002,156.2,156.1,28.4273]
[1727444284510,27.06,156.19,156.1,1.3673]
[1727444284789,27.06,156.19,156.09,2.5894]
[1727444284790,3.23658399,156.18,156.09,2.5894]
[1727444285299,3.2008,156.17,156.12,3.2018]
[1727444285499,3.23658399,156.18,156.12,3.2018]
[1727444285692,27.06,156.16,156.12,3.2018]
[1727444285892,27.06,156.16,156.05,54.4967952]
[1727444285893,30.21684624,156.16,156.11,3.2019]
[1727444286202,27.06,156.19,156.07,27.06]
[1727444286397,33.47947123,156.19,156.15,3.2011]
[1727444286990,30.2605,156.19,156.15,3.2011]
[1727444287196,3.2007,156.18,156.14,3.2013]
[1727444288404,3.2007,156.18,156.15,3.2012]
[1727444288698,27.06,156.17,156.05,54.4967952]
[1727444288897,27.06,156.17,156.1,3.2021]
[1727444289095,3.2023,156.1,156.02,2.6419]
[1727444289400,3.19227626,156.13,156.02,2.6419]
[1727444289606,27.06,156.14,156.02,2.6419]
[1727444289894,27.06,156.11,156.02,2.6419]
[1727444290100,27.06,156.11,156.06,3.2029]
[1727444290299,3.2024,156.1,156.02,2.6419]
[1727444290897,27.06,156.11,156.06,3.2029]
[1727444291102,27.06,156.14,156.02,29.7019]
[1727444291401,76.1,156.18,156.07,27.06]
[1727444291698,3.16185228,156.23,156.1,27.06]
[1727444291891,27.06,156.24,156.12,27.06]
[1727444292592,3.1995,156.24,156.12,27.06]
[1727444292807,103.16,156.26,156.15,27.06]
[1727444293104,103.16,156.26,156.11,2.6533]
[1727444293105,76.1,156.26,156.17,27.06]
[1727444293501,19.16,156.31,156.17,27.06]
[1727444293798,19.16,156.31,156.25,3.199]
[1727444293799,3.1979,156.31,156.25,3.199]
[1727444294005,76.1,156.34,156.25,3.199]
[1727444294801,76.1,156.34,156.26,3.1989]
[1727444295002,3.1982,156.3,156.2,28.3704]
[1727444295300,3.22893816,156.31,156.23,3.1994]
[1727444295500,27.06,156.32,156.2,28.3704]
[1727444296001,3.1984,156.29,156.23,3.1995]
[1727444296295,3.15851421,156.31,156.2,28.3704]
[1727444296498,3.1981,156.3,156.2,28.3704]
[1727444296908,27.06,156.32,156.2,28.3704]
[1727444297501,76.1,156.34,156.2,28.3704]
[1727444297896,3.1977,156.33,156.28,3.1985]
[1727444298101,76.1,156.34,156.2,28.3704]
[1727444298298,3.1984,156.29,156.2,28.3704]
[1727444298509,3.22511746,156.28,156.2,1.3104]
[1727444298698,27.06,156.29,156.2,1.3104]
[1727444298900,27.06,156.24,156.03,301.06]
[1727444299099,27.06,156.24,156.11,4.0156]
[1727444299298,27.06,156.22,156.11,4.0156]
[1727444300099,30.32544343,156.24,156.11,4.0156]
[1727444301305,30.32544343,156.24,156.15,3.201]
[1727444301502,27.06,156.21,156.11,4.0156]
[1727444301809,27.06,156.18,156.07,27.06]
[1727444302199,27.06,156.18,156.05,27.06]
[1727444302399,3.2014,156.14,156.09,3.2023]
[1727444303299,27.06,156.16,156.07,3.2027]
[1727444303496,27.06,156.13,156.04,4.0562]
[1727444303704,27.06,156.13,156.04,2.6694]
[1727444303901,27.06,156.13,156.06,3.203]
[1727444304305,3.202,156.11,156.06,3.203]
[1727444304903,27.06,156.1,156.0,1.3868]
[1727444305497,27.06,156.08,155.97,2.6867]
[1727444306009,3.25695277,156.07,156.0,3.2042]
[1727444306209,27.06,156.05,155.94,27.06]
[1727444306410,27.06,156.05,155.93,1.3105]
[1727444306613,3.204,156.02,155.97,3.2047]
[1727444306915,27.06,156.03,155.93,1.3105]
[1727444307404,3.2042,156.01,155.93,1.3105]
[1727444307609,27.06,156.03,155.93,1.3105]
[1727444307805,27.06,156.03,155.98,3.2045]
[1727444308103,27.06,156.03,155.93,1.3105]
[1727444308504,27.06,156.03,155.96,3.2049]
[1727444308704,27.06,156.03,155.93,1.3105]
[1727444309104,3.2039,156.02,155.93,1.3105]
[1727444309808,3.2039,156.02,155.97,3.2047]
[1727444310002,27.06,156.03,155.97,3.2047]
[1727444310202,27.06,156.03,155.96,3.205]
[1727444310404,27.06,156.03,155.93,1.3105]
[1727444311202,27.06,156.05,155.93,1.3105]
[1727444311404,76.1,156.06,155.96,27.06]
[1727444311605,76.1,156.06,155.99,27.06]
[1727444312003,76.1,156.06,155.98,1.2673]
[1727444312406,27.06,156.05,155.93,1.3105]
[1727444314005,27.06,156.02,155.93,1.3105]
[1727444314208,27.06,156.02,155.96,3.205]
[1727444316116,3.23251565,156.01,155.96,3.205]
[1727444316407,27.06,156.02,155.97,3.2048]
[1727444317312,27.06,156.02,155.98,3.2045]
[1727444317809,27.06,156.02,155.89,29.6542]
[1727444318012,27.06,156.02,155.99,3.2044]
[1727444318213,27.06,156.02,155.89,29.6542]
[1727444319313,27.06,156.02,155.92,27.06]
[1727444319608,27.06,156.02,155.89,29.6542]
[1727444320314,27.06,156.02,155.89,32.92711135]
[1727444320508,27.06,156.02,155.99,3.2043]
[1727444321208,27.06,156.02,155.98,3.2046]
[1727444322617,27.06,156.02,155.97,3.2048]
[1727444322811,3.2044,156.0,155.89,29.6542]
[1727444323012,3.20461882,156.0,155.96,3.205]
[1727444323317,27.06,155.99,155.89,2.5942]
[1727444323617,30.30277286,155.99,155.95,3.2051]
[1727444323807,27.06,155.99,155.89,2.5942]
[1727444324211,6.33974381,155.98,155.95,3.2053]
[1727444324414,3.13504381,155.98,155.89,2.5942]
[1727444324906,6.33974381,155.98,155.89,2.5942]
[1727444325110,3.13504381,155.98,155.89,2.5942]
[1727444325316,27.06,155.97,155.89,2.5942]
[1727444325515,30.34285064,155.97,155.89,2.5942]
[1727444325912,33.54785064,155.97,155.93,3.2056]
[1727444326112,27.06,155.95,155.81,6.4164]
[1727444326312,27.06,155.95,155.82,28.23859521]
[1727444326514,30.2654,155.95,155.91,3.2059]
[1727444327110,27.06,155.95,155.82,27.06]
[1727444328018,30.2654,155.95,155.82,27.06]
[1727444328210,27.06,155.95,155.82,27.06]
[1727444328412,27.06,155.95,155.91,3.206]
[1727444329520,27.06,155.95,155.92,3.2059]
[1727444330320,27.06,155.95,155.81,10.3569]
[1727444330321,30.34285064,155.97,155.87,27.06]
[1727444331219,30.34285064,155.97,155.84,27.06]
[1727444331420,27.06,155.95,155.84,27.06]
[1727444331623,27.06,155.92,155.81,31.0005]
[1727444332115,27.06,155.92,155.81,3.9405]
[1727444332818,3.2062,155.91,155.87,3.2068]
[1727444333012,27.06,155.92,155.81,3.9405]
[1727444334013,27.06,155.95,155.84,27.06]
[1727444334222,3.28285064,155.97,155.86,27.06]
[1727444334922,103.24,155.98,155.86,27.06]
[1727444335421,106.50229038,155.98,155.86,27.06]
[1727444335923,3.2054,155.95,155.91,3.206]
[1727444336627,106.50229038,155.98,155.86,27.06]
[1727444337130,76.18,155.98,155.95,3.2052]
[1727444337334,76.18,155.98,155.88,27.06]
[1727444337523,19.16,156.02,155.91,27.06]
[1727444337831,3.2046,155.99,155.95,3.2052]
[1727444338135,6.35093544,156.01,155.98,3.2047]
[1727444338322,27.06,156.03,155.98,3.2047]
[1727444338634,3.2044,156.0,155.96,3.2049]
[1727444338828,3.2044,156.0,155.91,27.06]
[1727444339030,27.06,156.03,155.91,27.06]
[1727444339327,27.06,156.0,155.89,3.9511]
[1727444339525,3.1919973,155.99,155.89,3.9511]
[1727444339924,27.06,156.0,155.89,3.9511]
[1727444340331,30.28630951,156.0,155.89,3.9511]
[1727444340531,3.2051,155.97,155.93,3.2055]
[1727444340825,27.06,155.98,155.89,3.9511]
[1727444341027,27.06,155.95,155.83,27.06]
[1727444341234,27.06,155.93,155.83,4.0401]
[1727444341422,3.2061,155.92,155.83,4.0401]
[1727444341625,27.06,155.95,155.83,31.1001]
[1727444341924,27.06,155.98,155.94,3.2055]
[1727444342129,27.06,155.98,155.88,27.06]
[1727444342721,9.60428365,156.09,155.88,27.06]
[1727444342722,27.06,156.01,155.88,27.06]
[1727444343125,3.2051,155.97,155.88,27.06]
[1727444343525,3.2051,155.96,155.92,3.2057]
[1727444343825,27.06,155.99,155.85,27.06]
[1727444344030,27.06,155.96,155.85,27.06]
[1727444344833,3.206,155.92,155.88,3.2066]
[1727444345037,3.206,155.92,155.83,31.1001]
[1727444345246,27.06,155.92,155.83,4.0401]
[1727444345737,27.06,155.92,155.87,3.2069]
[1727444346435,3.2065,155.89,155.83,4.0401]
[1727444346636,27.06,155.92,155.83,2.6659]
[1727444346831,27.06,155.92,155.79,1.3779]
[1727444347031,22.44539755,155.93,155.8,27.06]
[1727444347229,3.28539755,155.93,155.8,27.06]
[1727444347638,3.2062,155.91,155.87,3.2069]
[1727444348336,27.06,155.91,155.8,27.06]
[1727444348642,27.06,155.91,155.85,3.2072]
[1727444348643,3.2067,155.89,155.85,3.2072]
[1727444349242,3.207,155.87,155.83,3.2076]
[1727444349445,3.207,155.87,155.75,2.6576]
[1727444349446,27.06,155.91,155.79,27.06]
[1727444349642,30.24506383,155.91,155.88,3.2067]
[1727444349833,76.2,155.96,155.87,27.06]
[1727444350336,76.2,155.96,155.9,3.2062]
[1727444350536,76.2,155.96,155.88,2.7445]
[1727444350933,79.4051,155.96,155.92,3.2058]
[1727444351138,46.21,156.03,155.9,27.06]
[1727444351332,3.2047,155.98,155.9,27.06]
[1727444351541,30.22549207,156.03,155.9,27.06]
[1727444352439,3.2044,156.0,155.96,3.205]
[1727444352750,49.38549207,156.03,155.88,29.8045]
[1727444353038,27.06,155.99,155.88,29.8045]
[1727444353234,27.06,155.99,155.88,2.7445]
[1727444353645,3.2048,155.98,155.88,29.8045]
[1727444354046,27.06,155.99,155.88,29.8045]
[1727444354443,3.16549207,156.03,155.93,27.06]
[1727444354645,3.16549207,156.03,155.91,27.06]
[1727444354845,27.06,156.02,155.94,3.2054]
[1727444355049,27.06,156.0,155.88,2.7445]
[1727444355248,27.06,155.95,155.88,2.7445]
[1727444355441,27.06,155.95,155.91,3.2061]
[1727444355948,27.06,155.95,155.88,2.7445]
[1727444356152,3.2057,155.93,155.89,3.2065]
[1727444356347,27.06,155.95,155.85,1.35]
[1727444356652,3.2062,155.91,155.85,1.35]
[1727444356851,27.06,155.92,155.85,1.35]
[1727444357048,3.2067,155.89,155.84,2.6872]
[1727444357249,27.06,155.9,155.77,1.3562]
[1727444357550,27.06,155.9,155.77,4.0434]
[1727444357852,3.2071,155.87,155.77,4.0434]
[1727444358051,27.06,155.9,155.77,4.0434]
[1727444358247,27.06,155.84,155.77,4.0434]
[1727444358749,3.2081,155.82,155.77,7.2524]
[1727444358947,27.06,155.84,155.77,4.0434]
[1727444359349,30.2677,155.84,155.78,3.2087]
[1727444359548,27.06,155.84,155.77,4.0434]
[1727444359949,27.06,155.84,155.79,3.2084]
[1727444360151,27.06,155.84,155.77,2.6872]
[1727444360347,27.06,155.82,155.72,1.3545]
[1727444360548,27.06,155.82,155.72,3.9898]
[1727444360853,27.06,155.85,155.72,3.9898]
[1727444361151,3.208,155.82,155.77,3.209]
[1727444361347,30.20419704,155.85,155.72,3.9898]
[1727444361553,27.06,155.85,155.73,27.06]
[1727444361853,27.06,155.85,155.8,3.2083]
[1727444362049,76.2,155.89,155.75,27.06]
[1727444362244,79.4066,155.89,155.78,27.06]
[1727444362451,76.2,155.89,155.79,2.6349]
[1727444362847,79.4067,155.89,155.84,3.2074]
[1727444363149,76.2,155.89,155.8,1.3278]
[1727444363349,76.2,155.89,155.85,3.2072]
[1727444363547,76.2,155.89,155.81,27.06]
[1727444363751,3.2057,155.93,155.83,27.06]
[1727444364054,30.33366323,155.96,155.83,27.06]
[1727444364354,3.206,155.92,155.88,3.2066]
[1727444364745,30.24690064,155.93,155.81,27.06]
[1727444364948,27.06,155.9,155.8,1.3278]
[1727444366054,27.06,155.9,155.85,3.2072]
[1727444366253,27.06,155.9,155.8,1.3278]
[1727444366656,30.2664,155.9,155.85,3.2072]
[1727444366956,30.2664,155.9,155.8,1.3278]
[1727444367159,27.06,155.9,155.86,3.207]
[1727444367857,30.2664,155.9,155.86,3.207]
[1727444368856,30.2664,155.9,155.8,1.3278]
[1727444368857,30.2664,155.9,155.87,3.2069]
[1727444369750,27.06,155.9,155.8,1.3278]
[1727444369955,3.28314286,155.92,155.81,27.06]
[1727444370153,6.40724245,155.94,155.9,3.2062]
[1727444370462,3.20154245,155.94,155.83,27.06]
[1727444370651,3.2061,155.92,155.83,27.06]
[1727444371051,3.2061,155.92,155.88,3.2066]
[1727444371256,3.2061,155.92,155.83,27.06]
[1727444371860,3.2057,155.93,155.89,3.2065]
[1727444372360,3.2056,155.94,155.9,3.2062]
[1727444372556,106.5847469,155.95,155.83,27.06]
[1727444372858,3.2067,155.89,155.83,27.06]
[1727444373055,125.7447469,155.95,155.81,27.06]
[1727444373056,27.06,155.93,155.81,27.06]
[1727444373452,3.206,155.92,155.88,3.2066]
[1727444374262,27.06,155.93,155.81,27.06]
[1727444374753,3.2062,155.91,155.87,3.2069]
[1727444375153,27.06,155.93,155.87,3.2069]
[1727444375358,27.06,155.93,155.81,27.06]
[1727444375760,76.24,155.95,155.86,27.06]
[1727444375961,76.24,155.95,155.87,2.5688]
[1727444376161,76.24,155.95,155.87,3.8383]
[1727444376368,3.2049,155.97,155.87,3.8383]
[1727444376663,27.06,156.0,155.87,3.8383]
[1727444376865,0.95702129,155.99,155.88,27.06]
[1727444377061,4.16152129,155.99,155.95,3.2052]
[1727444377266,27.06,156.0,155.88,27.06]
[1727444377464,27.06,156.0,155.87,3.8383]
[1727444377465,30.2643,156.0,155.96,3.205]
[1727444377662,27.06,156.02,155.9,27.06]
[1727444378665,76.22,156.03,155.87,3.8383]
[1727444378666,76.22,156.03,155.92,27.06]
[1727444379167,76.22,156.03,155.98,3.2046]
[1727444379470,27.06,156.02,155.9,27.06]
[1727444379767,27.06,156.02,155.87,3.8383]
[1727444380161,3.2047,155.98,155.87,3.8383]
[1727444380772,27.06,156.0,155.94,3.2055]
[1727444380967,27.06,156.0,155.87,3.8383]
[1727444381269,27.06,156.0,155.93,3.2056]
[1727444381666,27.06,156.02,155.87,3.8383]
[1727444381869,27.06,156.02,155.91,27.06]
[1727444382066,3.2044,156.0,155.91,27.06]
[1727444382271,27.06,156.0,155.89,27.06]
[1727444382566,27.06,156.0,155.87,3.8383]
[1727444382769,46.22,156.02,155.88,27.06]
[1727444383158,3.2043,156.0,155.87,3.8383]
[1727444383357,27.06,156.02,155.91,27.06]
[1727444383772,3.2043,156.0,155.91,27.06]
[1727444383967,27.06,156.02,155.87,3.8383]
[1727444383968,46.22,156.02,155.88,27.06]
[1727444384268,3.2045,155.99,155.95,3.2052]
[1727444384669,46.22,156.02,155.88,27.06]
[1727444384864,27.06,155.99,155.87,3.8383]
[1727444385774,46.22,156.02,155.87,3.8383]
[1727444385963,46.22,156.02,155.89,27.06]
[1727444386171,3.2045,155.99,155.95,3.2052]
[1727444386368,27.06,155.97,155.87,3.8383]
[1727444386563,3.14742934,155.96,155.87,3.8383]
[1727444387167,27.06,155.95,155.87,3.8383]
[1727444387366,30.23421264,155.95,155.87,3.8383]
[1727444387570,27.06,155.99,155.87,30.8983]
[1727444388075,3.2049,155.97,155.93,3.2055]
[1727444388864,3.2049,155.97,155.94,3.2055]
[1727444389070,30.33589265,155.96,155.87,2.5688]
[1727444389271,27.06,155.96,155.87,2.5688]
[1727444389473,27.06,155.96,155.9,3.2062]
[1727444389873,3.2056,155.94,155.9,3.2062]
[1727444390075,3.2056,155.94,155.91,3.2061]
[1727444390679,3.2053,155.95,155.92,3.2058]
[1727444390977,76.2,156.0,155.88,27.06]
[1727444391170,76.2,156.0,155.89,1.3587]
[1727444391575,3.2051,155.97,155.93,3.2056]
[1727444391772,27.06,155.99,155.89,1.3587]
[1727444392180,3.2053,155.96,155.93,3.2057]
[1727444392379,27.06,155.99,155.89,1.3587]
[1727444392777,46.22,155.99,155.89,1.3587]
[1727444393286,19.16,156.05,155.95,27.06]
[1727444393688,19.16,156.07,155.95,27.06]
[1727444393884,22.31567686,156.07,155.95,27.06]
[1727444394288,22.31567686,156.07,155.98,3.2045]
[1727444394791,3.204,156.02,155.98,3.2045]
[1727444395193,22.31567686,156.07,155.99,3.2045]
[1727444395987,3.204,156.02,155.99,3.2045]
[1727444396693,3.2041,156.01,155.98,3.2046]
[1727444396988,27.06,156.01,155.89,1.3587]
[1727444397185,3.205,155.97,155.93,3.2055]
[1727444397386,3.205,155.97,155.89,1.3587]
[1727444399095,3.2048,155.98,155.89,1.3587]
[1727444399587,3.204,156.02,155.92,27.06]
[1727444399793,27.06,156.06,155.92,27.06]
[1727444400190,27.06,156.06,155.98,3.2046]
[1727444400390,3.2041,156.02,155.98,3.2046]
[1727444400797,3.2041,156.02,155.99,3.2044]
[1727444400998,3.15567686,156.07,155.95,27.06]
[1727444401193,27.06,156.08,155.96,4.0277]
[1727444401501,30.32927359,156.08,155.96,4.0277]
[1727444401795,27.06,156.06,155.96,2.7274]
[1727444401989,22.42927359,156.08,155.97,27.06]